fUST/lending_fUST_20250223
["ID","MTS","AMOUNT","RATE_DAILY","PERIOD"]
[354126433,1740263451402,-500.0,0.0001452,2]
[354126434,1740263451411,-984.64,0.0001452,2]
[354126435,1740263451421,-500.0,0.0001452,2]
[354126436,1740263451431,-1332.51,0.0001452,2]
[354126437,1740263451441,-2711.03,0.0001452,2]
[354126438,1740263451450,-500.0,0.0001452,2]
[354126439,1740263451460,-1401.3,0.0001452,2]
[354126440,1740263451469,-645.69,0.0001452,2]
[354126441,1740263451478,-500.0,0.0001452,2]
[354126442,1740263451488,-500.0,0.0001452,2]
[354126443,1740263451497,-1357.49,0.0001452,2]
[354126444,1740263451506,-500.0,0.0001452,2]
[354126445,1740263451516,-553.07,0.0001452,2]
[354126446,1740263451525,-500.0,0.0001452,2]
[354126447,1740263451534,-549.57,0.0001452,2]
[354126448,1740263451544,-6285.66,0.0001452,2]
[354126449,1740263451553,-600.11,0.0001452,2]
[354126450,1740263451563,-624.18,0.0001452,2]
[354126451,1740263451572,-500.0,0.0001452,2]
[354126452,1740263451581,-2165.5,0.0001452,2]
[354126453,1740263451593,-2515.85,0.0001452,2]
[354126454,1740263451602,-500.0,0.0001452,2]
[354126455,1740263451611,-4810.49,0.0001452,2]
[354126456,1740263451621,-538.11,0.0001452,2]
[354126457,1740263451630,-1515.07,0.0001452,2]
[354126458,1740263451639,-16906.4,0.0001452,2]
[354126459,1740263451649,-500.0,0.0001452,2]
[354126460,1740263451658,-891.69,0.0001452,2]
[354126461,1740263451668,-1211.33,0.0001452,2]
[354126462,1740263451677,-500.0,0.0001452,2]
[354126463,1740263451687,-691.98,0.0001452,2]
[354126464,1740263451696,-500.0,0.00014602,2]
[354126465,1740263451705,-377.66,0.00014602,2]
[354126466,1740263451768,-500.0,0.00014602,2]
[354126467,1740263451778,-209.66,0.00014602,2]
[354126468,1740263451788,-500.0,0.00014602,2]
[354126469,1740263451797,-500.0,0.00014602,2]
[354126470,1740263451807,-225.08,0.00014602,2]
[354126471,1740263451816,-343.7,0.00014602,2]
[354126472,1740263451826,-495.86,0.00014602,2]
[354126473,1740263451835,-417.7,0.00014602,2]
[354126474,1740263451844,-500.0,0.00014602,2]
[354126475,1740263451853,-210.62,0.00014602,2]
[354126476,1740263451863,-517.31,0.00014602,2]
[354126477,1740263451873,-500.0,0.00014602,2]
[354126478,1740263451882,-984.64,0.00014602,2]
[354126479,1740263451890,-500.0,0.00014602,2]
[354126480,1740263451899,-1332.51,0.00014602,2]
[354126481,1740263451909,-2711.03,0.00014602,2]
[354126482,1740263451918,-500.0,0.00014602,2]
[354126483,1740263451927,-1401.3,0.00014602,2]
[354126484,1740263451937,-645.69,0.00014602,2]
[354126485,1740263451946,-500.0,0.00014602,2]
[354126486,1740263451955,-500.0,0.00014602,2]
[354126487,1740263451965,-1357.49,0.00014602,2]
[354126488,1740263451975,-500.0,0.00014602,2]
[354126489,1740263451984,-553.07,0.00014602,2]
[354126490,1740263451994,-170.65,0.00014602,2]
[354126491,1740263452003,-549.57,0.00014602,2]
[354126492,1740263452012,-6285.66,0.00014602,2]
[354126493,1740263452021,-600.11,0.00014602,2]
[354126494,1740263452031,-624.18,0.00014602,2]
[354126495,1740263452040,-500.0,0.00014602,2]
[354126496,1740263452050,-2165.5,0.00014602,2]
[354126497,1740263452059,-2515.85,0.00014602,2]
[354126498,1740263452069,-500.0,0.00014602,2]
[354126499,1740263452078,-4810.49,0.00014602,2]
[354126500,1740263452087,-538.11,0.00014602,2]
[354126501,1740263452098,-1515.07,0.00014602,2]
[354126502,1740263452108,-16906.4,0.00014602,2]
[354126503,1740263452117,-500.0,0.00014602,2]
[354126504,1740263452130,-891.69,0.00014602,2]
[354126505,1740263452139,-1211.33,0.00014602,2]
[354126506,1740263452150,-227.9,0.00014602,2]
[354126507,1740263452159,-691.98,0.00014602,2]
[354126508,1740263452170,-383.46,0.00014684,2]
[354126509,1740263452180,-500.0,0.00014684,2]
[354126510,1740263452190,-500.0,0.00014684,2]
[354126511,1740263452201,-500.0,0.00014684,2]
[354126512,1740263452211,-500.0,0.00014684,2]
[354126513,1740263452220,-151.0,0.00014684,2]
[354126514,1740263452230,-260.28,0.00014684,2]
[354126515,1740263452239,-260.28,0.00014684,2]
[354126516,1740263452249,-151.0,0.00014684,2]
[354126517,1740263452259,-517.31,0.00014684,2]
[354126518,1740263452269,-500.0,0.00014684,2]
[354126519,1740263452278,-984.64,0.00014684,2]
[354126520,1740263452288,-500.0,0.00014684,2]
[354126521,1740263452297,-1332.51,0.00014684,2]
[354126522,1740263452307,-2711.03,0.00014684,2]
[354126523,1740263452316,-500.0,0.00014684,2]
[354126524,1740263452325,-1401.3,0.00014684,2]
[354126525,1740263452334,-645.69,0.00014684,2]
[354126526,1740263452343,-500.0,0.00014684,2]
[354126527,1740263452353,-500.0,0.00014684,2]
[354126528,1740263452362,-1357.49,0.00014684,2]
[354126529,1740263452372,-500.0,0.00014684,2]
[354126530,1740263452381,-553.07,0.00014684,2]
[354126531,1740263452390,-549.57,0.00014684,2]
[354126532,1740263452400,-6285.66,0.00014684,2]
[354126533,1740263452410,-600.11,0.00014684,2]
[354126534,1740263452419,-624.18,0.00014684,2]
[354126535,1740263452428,-500.0,0.00014684,2]
[354126536,1740263452438,-2165.5,0.00014684,2]
[354126537,1740263452448,-2515.85,0.00014684,2]
[354126538,1740263452458,-500.0,0.00014684,2]
[354126539,1740263452467,-4810.49,0.00014684,2]
[354126540,1740263452477,-538.11,0.00014684,2]
[354126541,1740263452486,-1515.07,0.00014684,2]
[354126542,1740263452495,-16906.4,0.00014684,2]
[354126543,1740263452504,-500.0,0.00014684,2]
[354126544,1740263452514,-891.69,0.00014684,2]
[354126545,1740263452523,-1211.33,0.00014684,2]
[354126546,1740263452532,-691.98,0.00014684,2]
[354126547,1740263452542,-437.98803263,0.00014721,2]
[354126548,1740263452551,-264.1913383,0.00014721,2]
[354126549,1740263452561,-500.0,0.00014767,2]
[354126550,1740263452571,-500.0,0.00014767,2]
[354126551,1740263452582,-500.0,0.00014767,2]
[354126552,1740263452593,-500.0,0.00014767,2]
[354126553,1740263452602,-517.31,0.00014767,2]
[354126554,1740263452612,-500.0,0.00014767,2]
[354126555,1740263452622,-984.64,0.00014767,2]
[354126556,1740263452631,-500.0,0.00014767,2]
[354126557,1740263452640,-1332.51,0.00014767,2]
[354126558,1740263452649,-2711.03,0.00014767,2]
[354126559,1740263452658,-317.5,0.00014767,2]
[354126560,1740263452667,-1401.3,0.00014767,2]
[354126561,1740263452677,-645.69,0.00014767,2]
[354126562,1740263452687,-500.0,0.00014767,2]
[354126563,1740263452747,-225.16087571,0.00014767,2]
[354126564,1740263452893,-274.83912429,0.00014767,2]
[354126565,1740263452903,-1357.49,0.00014767,2]
[354126566,1740263452913,-214.85,0.00014767,2]
[354126567,1740263452923,-553.07,0.00014767,2]
[354126568,1740263452932,-549.57,0.00014767,2]
[354126569,1740263452942,-6285.66,0.00014767,2]
[354126570,1740263452951,-600.11,0.00014767,2]
[354126571,1740263452960,-624.18,0.00014767,2]
[354126572,1740263452970,-500.0,0.00014767,2]
[354126573,1740263452979,-2165.5,0.00014767,2]
[354126574,1740263452989,-2515.85,0.00014767,2]
[354126575,1740263452999,-500.0,0.00014767,2]
[354126576,1740263453009,-4810.49,0.00014767,2]
[354126577,1740263453018,-538.11,0.00014767,2]
[354126578,1740263453028,-151.0,0.00014767,2]
[354126579,1740263453037,-1515.07,0.00014767,2]
[354126580,1740263453046,-16906.4,0.00014767,2]
[354126581,1740263453056,-500.0,0.00014767,2]
[354126582,1740263453065,-891.69,0.00014767,2]
[354126583,1740263453074,-1211.33,0.00014767,2]
[354126584,1740263453083,-691.98,0.00014767,2]
[354126585,1740263453093,-531.26,0.00014849,2]
[354126586,1740263453112,-500.0,0.00014849,2]
[354126587,1740263453129,-151.0,0.00014849,2]
[354126588,1740263453147,-212.407257,0.00014849,2]
[354126589,1740263453164,-500.0,0.00014849,2]
[354126590,1740263453182,-151.0,0.00014849,2]
[354126591,1740263453199,-500.0,0.00014849,2]
[354126592,1740263453218,-517.31,0.00014849,2]
[354126593,1740263453230,-500.0,0.00014849,2]
[354126594,1740263453246,-984.64,0.00014849,2]
[354126595,1740263453265,-500.0,0.00014849,2]
[354126596,1740263453284,-1332.51,0.00014849,2]
[354126597,1740263453296,-2711.03,0.00014849,2]
[354126598,1740263453315,-1401.3,0.00014849,2]
[354126599,1740263453329,-645.69,0.00014849,2]
[354126600,1740263453344,-500.0,0.00014849,2]
[354126601,1740263453357,-488.6,0.00014849,2]
[354126602,1740263453372,-1357.49,0.00014849,2]
[354126603,1740263453387,-553.07,0.00014849,2]
[354126604,1740263453401,-549.57,0.00014849,2]
[354126605,1740263453416,-6285.66,0.00014849,2]
[354126606,1740263453430,-600.11,0.00014849,2]
[354126607,1740263453446,-624.18,0.00014849,2]
[354126608,1740263453457,-500.0,0.00014849,2]
[354126609,1740263453467,-2165.5,0.00014849,2]
[354126610,1740263453476,-2515.85,0.00014849,2]
[354126611,1740263453486,-446.95,0.00014849,2]
[354126612,1740263453495,-4810.49,0.00014849,2]
[354126613,1740263453505,-538.11,0.00014849,2]
[354126614,1740263453514,-1515.07,0.00014849,2]
[354126615,1740263453524,-16906.4,0.00014849,2]
[354126616,1740263453533,-500.0,0.00014849,2]
[354126617,1740263453543,-891.69,0.00014849,2]
[354126618,1740263453552,-1211.33,0.00014849,2]
[354126619,1740263453562,-691.98,0.00014849,2]
[354126620,1740263453571,-832.14820664,0.000149,2]
[354126621,1740263453581,-338.005,0.00014911,2]
[354126622,1740263453590,-500.0,0.00014931,2]
[354126623,1740263453599,-500.0,0.00014931,2]
[354126624,1740263453609,-345.2,0.00014931,2]
[354126625,1740263453618,-517.31,0.00014931,2]
[354126626,1740263453628,-500.0,0.00014931,2]
[354126627,1740263453637,-984.64,0.00014931,2]
[354126628,1740263453646,-500.0,0.00014931,2]
[354126629,1740263453656,-1332.51,0.00014931,2]
[354126630,1740263453818,-2711.03,0.00014931,2]
[354126631,1740263453827,-1401.3,0.00014931,2]
[354126632,1740263453836,-645.69,0.00014931,2]
[354126633,1740263453845,-500.0,0.00014931,2]
[354126634,1740263453855,-1357.49,0.00014931,2]
[354126635,1740263453864,-553.07,0.00014931,2]
[354126636,1740263453874,-549.57,0.00014931,2]
[354126637,1740263453883,-6285.66,0.00014931,2]
[354126638,1740263453891,-600.11,0.00014931,2]
[354126639,1740263453901,-624.18,0.00014931,2]
[354126640,1740263453910,-500.0,0.00014931,2]
[354126641,1740263453919,-2165.5,0.00014931,2]
[354126642,1740263453929,-2515.85,0.00014931,2]
[354126643,1740263453938,-4810.49,0.00014931,2]
[354126644,1740263453947,-538.11,0.00014931,2]
[354126645,1740263453956,-1515.07,0.00014931,2]
[354126646,1740263453965,-16906.4,0.00014931,2]
[354126647,1740263453974,-176.3,0.00014931,2]
[354126648,1740263453984,-891.69,0.00014931,2]
[354126649,1740263453995,-1211.33,0.00014931,2]
[354126650,1740263454004,-691.98,0.00014931,2]
[354126651,1740263454013,-6496.30848289,0.00014995,2]
[354126652,1740263454023,-500.0,0.00015013,2]
[354126653,1740263454032,-500.0,0.00015013,2]
[354126654,1740263454041,-517.31,0.00015013,2]
[354126655,1740263454050,-617.55,0.00015013,2]
[354126656,1740263454059,-984.64,0.00015013,2]
[354126657,1740263454069,-500.0,0.00015013,2]
[354126658,1740263454078,-1332.51,0.00015013,2]
[354126659,1740263454087,-2711.03,0.00015013,2]
[354126660,1740263454096,-1401.3,0.00015013,2]
[354126661,1740263454105,-645.69,0.00015013,2]
[354126662,1740263454114,-500.0,0.00015013,2]
[354126663,1740263454123,-1357.49,0.00015013,2]
[354126664,1740263454135,-553.07,0.00015013,2]
[354126665,1740263454144,-549.57,0.00015013,2]
[354126666,1740263454153,-6285.66,0.00015013,2]
[354126667,1740263454162,-600.11,0.00015013,2]
[354126668,1740263454173,-624.18,0.00015013,2]
[354126669,1740263454182,-500.0,0.00015013,2]
[354126670,1740263454192,-2165.5,0.00015013,2]
[354126671,1740263454203,-2515.85,0.00015013,2]
[354126672,1740263454213,-4810.49,0.00015013,2]
[354126673,1740263454222,-538.11,0.00015013,2]
[354126674,1740263454232,-1515.07,0.00015013,2]
[354126675,1740263454241,-16906.4,0.00015013,2]
[354126676,1740263454250,-891.69,0.00015013,2]
[354126677,1740263454259,-1211.33,0.00015013,2]
[354126678,1740263454268,-691.98,0.00015013,2]
[354126679,1740263454278,-21081.77658335,0.00015095,5]
[354126680,1740263454287,-10171.52884041,0.00015095,5]
[354126681,1740263454297,-500.0,0.00015095,2]
[354126682,1740263454306,-316.76,0.00015095,2]
[354126683,1740263454315,-260.28,0.00015095,2]
[354126684,1740263454324,-174.036188,0.00015095,2]
[354126685,1740263454333,-260.28,0.00015095,2]
[354126686,1740263454343,-151.0,0.00015095,2]
[354126687,1740263454352,-517.31,0.00015095,2]
[354126688,1740263454361,-984.64,0.00015095,2]
[354126689,1740263454371,-500.0,0.00015095,2]
[354126690,1740263454380,-1332.51,0.00015095,2]
[354126691,1740263454390,-504.35449922,0.00015095,2]
[354126692,1740263454580,-500.0,0.0001378,2]
[354126693,1740263454590,-500.0,0.00013862,2]
[354126694,1740263454598,-500.0,0.00013862,2]
[354126695,1740263454607,-500.0,0.00013862,2]
[354126696,1740263454617,-256.86195327,0.00013862,2]
[354126697,1740263454627,-2206.67550078,0.00015095,2]
[354126698,1740263454636,-1401.3,0.00015095,2]
[354126699,1740263454645,-645.69,0.00015095,2]
[354126700,1740263454654,-191.7,0.00015095,2]
[354126701,1740263454664,-1357.49,0.00015095,2]
[354126702,1740263454674,-553.07,0.00015095,2]
[354126703,1740263454684,-549.57,0.00015095,2]
[354126704,1740263454694,-6285.66,0.00015095,2]
[354126705,1740263454705,-600.11,0.00015095,2]
[354126706,1740263454717,-624.18,0.00015095,2]
[354126707,1740263454729,-500.0,0.00015095,2]
[354126708,1740263454739,-2165.5,0.00015095,2]
[354126709,1740263454750,-2515.85,0.00015095,2]
[354126710,1740263454761,-4810.49,0.00015095,2]
[354126711,1740263454773,-538.11,0.00015095,2]
[354126712,1740263454784,-151.0,0.00015095,2]
[354126713,1740263454794,-1515.07,0.00015095,2]
[354126714,1740263454804,-12403.94899837,0.00015095,2]
[354126715,1740263454817,-4502.45100163,0.00015095,2]
[354126716,1740263454827,-891.69,0.00015095,2]
[354126717,1740263454836,-1211.33,0.00015095,2]
[354126718,1740263454846,-691.98,0.00015095,2]
[354126719,1740263454857,-500.0,0.00015178,2]
[354126720,1740263454868,-984.64,0.00015178,2]
[354126721,1740263454877,-500.0,0.00015178,2]
[354126722,1740263454887,-1332.51,0.00015178,2]
[354126723,1740263454897,-2711.03,0.00015178,2]
[354126724,1740263454907,-1401.3,0.00015178,2]
[354126725,1740263454916,-645.69,0.00015178,2]
[354126726,1740263454925,-1357.49,0.00015178,2]
[354126727,1740263454934,-553.07,0.00015178,2]
[354126728,1740263454944,-549.57,0.00015178,2]
[354126729,1740263454953,-6285.66,0.00015178,2]
[354126730,1740263454962,-600.11,0.00015178,2]
[354126731,1740263454972,-624.18,0.00015178,2]
[354126732,1740263454981,-500.0,0.00015178,2]
[354126733,1740263454990,-1997.32414488,0.00015178,2]
[354126734,1740263455006,-168.17585512,0.00015178,2]
[354126735,1740263455015,-2515.85,0.00015178,2]
[354126736,1740263455024,-4810.49,0.00015178,2]
[354126737,1740263455033,-538.11,0.00015178,2]
[354126738,1740263455042,-1515.07,0.00015178,2]
[354126739,1740263455051,-16906.4,0.00015178,2]
[354126740,1740263455060,-891.69,0.00015178,2]
[354126741,1740263455069,-1211.33,0.00015178,2]
[354126742,1740263455078,-691.98,0.00015178,2]
[354126743,1740263455087,-2873.06318132,0.00015205,2]
[354126744,1740263455096,-500.0,0.0001526,2]
[354126745,1740263455105,-984.64,0.0001526,2]
[354126746,1740263455114,-500.0,0.0001526,2]
[354126747,1740263455123,-1332.51,0.0001526,2]
[354126748,1740263455136,-2711.03,0.0001526,2]
[354126749,1740263455145,-1401.3,0.0001526,2]
[354126750,1740263455154,-645.69,0.0001526,2]
[354126751,1740263455164,-1357.49,0.0001526,2]
[354126752,1740263455175,-553.07,0.0001526,2]
[354126753,1740263455184,-549.57,0.0001526,2]
[354126754,1740263455194,-6285.66,0.0001526,2]
[354126755,1740263455204,-600.11,0.0001526,2]
[354126756,1740263455214,-624.18,0.0001526,2]
[354126757,1740263455224,-500.0,0.0001526,2]
[354126758,1740263455234,-2165.5,0.0001526,2]
[354126759,1740263455243,-2515.85,0.0001526,2]
[354126760,1740263455252,-1298.79720515,0.0001526,2]
[354126761,1740263455264,-539.67050219,0.0001526,2]
[354126762,1740263455275,-2351.38972336,0.0001526,2]
[354126763,1740263455286,-620.6325693,0.0001526,2]
[354126764,1740263455296,-538.11,0.0001526,2]
[354126765,1740263455306,-80.53793706,0.0001526,2]
[354126766,1740263455366,-183.65111481,0.0001368,2]
[354126767,1740263455375,-364.02841136,0.00013698,2]
[354126768,1740263455387,-135.97158864,0.00013698,2]
[354126769,1740263455396,-500.0,0.0001378,2]
[354126770,1740263455405,-1434.53206294,0.0001526,2]
[354126771,1740263455415,-1149.97410213,0.0001526,2]
[354126772,1740263455426,-15756.42589787,0.0001526,2]
[354126773,1740263455436,-891.69,0.0001526,2]
[354126774,1740263455446,-1211.33,0.0001526,2]
[354126775,1740263455455,-691.98,0.0001526,2]
[354126776,1740263455466,-1500.0,0.00015322,2]
[354126777,1740263455475,-500.0,0.00015342,2]
[354126778,1740263455485,-151.0,0.00015342,2]
[354126779,1740263455494,-984.64,0.00015342,2]
[354126780,1740263455503,-278.75,0.00015342,2]
[354126781,1740263455513,-1332.51,0.00015342,2]
[354126782,1740263455523,-2711.03,0.00015342,2]
[354126783,1740263455532,-1401.3,0.00015342,2]
[354126784,1740263455542,-645.69,0.00015342,2]
[354126785,1740263455552,-1357.49,0.00015342,2]
[354126786,1740263455563,-553.07,0.00015342,2]
[354126787,1740263455573,-549.57,0.00015342,2]
[354126788,1740263455587,-6285.66,0.00015342,2]
[354126789,1740263455596,-600.11,0.00015342,2]
[354126790,1740263455605,-624.18,0.00015342,2]
[354126791,1740263455614,-500.0,0.00015342,2]
[354126792,1740263455623,-2165.5,0.00015342,2]
[354126793,1740263455633,-2515.85,0.00015342,2]
[354126794,1740263455642,-4810.49,0.00015342,2]
[354126795,1740263455657,-538.11,0.00015342,2]
[354126796,1740263455666,-1515.07,0.00015342,2]
[354126797,1740263455675,-16906.4,0.00015342,2]
[354126798,1740263455685,-891.69,0.00015342,2]
[354126799,1740263455694,-1211.33,0.00015342,2]
[354126800,1740263455704,-691.98,0.00015342,2]
[354126801,1740263455715,-587.0,0.00015351,2]
[354126802,1740263455726,-500.0,0.00015424,2]
[354126803,1740263455737,-151.0,0.00015424,2]
[354126804,1740263455749,-984.64,0.00015424,2]
[354126805,1740263455760,-1332.51,0.00015424,2]
[354126806,1740263455770,-2711.03,0.00015424,2]
[354126807,1740263455779,-1401.3,0.00015424,2]
[354126808,1740263455788,-645.69,0.00015424,2]
[354126809,1740263455798,-1357.49,0.00015424,2]
[354126810,1740263455808,-553.07,0.00015424,2]
[354126811,1740263455817,-549.57,0.00015424,2]
[354126812,1740263455827,-6285.66,0.00015424,2]
[354126813,1740263455836,-600.11,0.00015424,2]
[354126814,1740263455846,-624.18,0.00015424,2]
[354126815,1740263455857,-500.0,0.00015424,2]
[354126816,1740263455867,-2165.5,0.00015424,2]
[354126817,1740263455877,-2515.85,0.00015424,2]
[354126818,1740263455886,-4810.49,0.00015424,2]
[354126819,1740263455897,-538.11,0.00015424,2]
[354126820,1740263455907,-1515.07,0.00015424,2]
[354126821,1740263455916,-16906.4,0.00015424,2]
[354126822,1740263455925,-891.69,0.00015424,2]
[354126823,1740263455934,-1211.33,0.00015424,2]
[354126824,1740263455943,-691.98,0.00015424,2]
[354126825,1740263455953,-620.86,0.00015506,2]
[354126826,1740263455962,-260.28,0.00015506,2]
[354126827,1740263455970,-260.28,0.00015506,2]
[354126828,1740263455979,-151.0,0.00015506,2]
[354126829,1740263455988,-984.64,0.00015506,2]
[354126830,1740263455998,-1332.51,0.00015506,2]
[354126831,1740263456008,-2711.03,0.00015506,2]
[354126832,1740263456093,-1401.3,0.00015506,2]
[354126833,1740263456102,-645.69,0.00015506,2]
[354126834,1740263456112,-1357.49,0.00015506,2]
[354126835,1740263456122,-553.07,0.00015506,2]
[354126836,1740263456135,-549.57,0.00015506,2]
[354126837,1740263456144,-6285.66,0.00015506,2]
[354126838,1740263456154,-600.11,0.00015506,2]
[354126839,1740263456163,-624.18,0.00015506,2]
[354126840,1740263456173,-500.0,0.00015506,2]
[354126841,1740263456183,-2165.5,0.00015506,2]
[354126842,1740263456193,-2515.85,0.00015506,2]
[354126843,1740263456203,-4810.49,0.00015506,2]
[354126844,1740263456213,-538.11,0.00015506,2]
[354126845,1740263456223,-151.0,0.00015506,2]
[354126846,1740263456232,-1515.07,0.00015506,2]
[354126847,1740263456241,-16906.4,0.00015506,2]
[354126848,1740263456250,-891.69,0.00015506,2]
[354126849,1740263456260,-1211.33,0.00015506,2]
[354126850,1740263456268,-691.98,0.00015506,2]
[354126851,1740263456278,-435.8689266,0.00015541,2]
[354126852,1740263456287,-984.7,0.00015589,2]
[354126853,1740263456296,-1332.63,0.00015589,2]
[354126854,1740263456306,-2711.22,0.00015589,2]
[354126855,1740263456315,-1401.42,0.00015589,2]
[354126856,1740263456324,-645.92,0.00015589,2]
[354126857,1740263456333,-1357.65,0.00015589,2]
[354126858,1740263456343,-553.09,0.00015589,2]
[354126859,1740263456351,-549.69,0.00015589,2]
[354126860,1740263456360,-6285.87000001,0.00015589,2]
[354126861,1740263456369,-600.12,0.00015589,2]
[354126862,1740263456379,-624.21,0.00015589,2]
[354126863,1740263456388,-269.1,0.00015589,2]
[354126864,1740263456397,-2165.71,0.00015589,2]
[354126865,1740263456406,-2515.99935907,0.00015589,2]
[354126866,1740263456415,-4810.56942231,0.00015589,2]
[354126867,1740263456424,-538.29,0.00015589,2]
[354126868,1740263456435,-1515.2,0.00015589,2]
[354126869,1740263456444,-16906.44504092,0.00015589,2]
[354126870,1740263456454,-891.69,0.00015589,2]
[354126871,1740263456465,-1211.55,0.00015589,2]
[354126872,1740263456476,-692.06,0.00015589,2]
[354126873,1740263456486,-557.2941539,0.00015678,2]
[354126874,1740263456495,-557.1188801,0.00015678,2]
[354126875,1740263456504,-154.796407,0.00015678,2]
[354126876,1740263456513,-151.0,0.000157,2]
[354126877,1740263456523,-244.190758,0.00015775,2]
[354126878,1740263456532,-2002.1901053,0.0001578,2]
[354126879,1740263456542,-29527.0273273,0.00015788,2]
[354126880,1740263456551,-1000.0,0.00015808,2]
[354126881,1740263456560,-600.0,0.0001584,2]
[354126882,1740263456570,-151.0,0.000159,2]
[354126883,1740263456579,-168.26106218,0.00015918,2]
[354126884,1740263456588,-600.0,0.00016005,2]
[354126885,1740263456598,-185.0341079,0.00016163,2]
[354126886,1740263456607,-499.0,0.00016164,2]
[354126887,1740263456617,-600.0,0.0001617,2]
[354126888,1740263456626,-151.0,0.000162,2]
[354126889,1740263456636,-600.0,0.00016335,2]
[354126890,1740263456645,-12675.73538758,0.00016348,2]
[354126891,1740263456654,-3000.0,0.000164,2]
[354126892,1740263456663,-2873.06318132,0.000164,2]
[354126893,1740263456672,-279.69315635,0.000164,2]
[354126894,1740263456681,-279.69315635,0.000164,2]
[354126895,1740263456690,-279.69315635,0.000164,2]
[354126896,1740263456699,-279.69315635,0.000164,2]
[354126897,1740263456708,-279.69315635,0.000164,2]
[354126898,1740263456717,-279.69315635,0.000164,2]
[354126899,1740263456726,-279.69315635,0.000164,2]
[354126900,1740263456736,-279.69315635,0.000164,2]
[354126901,1740263456744,-279.69315635,0.000164,2]
[354126902,1740263456754,-279.69315635,0.000164,2]
[354126903,1740263456763,-279.69315635,0.000164,2]
[354126904,1740263456772,-279.69315635,0.000164,2]
[354126905,1740263456781,-279.69315635,0.000164,2]
[354126906,1740263456790,-279.69315635,0.000164,2]
[354126907,1740263456799,-279.69315635,0.000164,2]
[354126908,1740263456808,-279.69315635,0.000164,2]
[354126909,1740263456817,-279.69315635,0.000164,2]
[354126910,1740263456826,-279.69315635,0.000164,2]
[354126911,1740263456835,-279.69315635,0.000164,2]
[354126912,1740263456844,-279.69,0.000164,2]
[354126913,1740263456853,-2287.0,0.00016431,2]
[354126914,1740263456862,-396.0,0.00016431,2]
[354126915,1740263456871,-150.0,0.00016431,2]
[354126916,1740263456880,-538.0,0.00016431,2]
[354126917,1740263456889,-445.94572311,0.0001649,2]
[354126918,1740263456899,-528406.40046925,0.000165,8]
[354126919,1740263456950,-559.57270715,0.000165,8]
[354126920,1740263566682,-150.0,0.0001,2]
[354126921,1740264223496,-150.0,9.041e-05,2]
[354126923,1740264243666,-112.55171,9.041e-05,2]
[354126924,1740264243690,-37.44829,9.999e-05,2]
[354126935,1740264632461,-9950.0,0.0001,2]
[354126936,1740264632470,-300.0,0.00010958,2]
[354126937,1740264632479,-450.0,0.00010959,2]
[354126938,1740264632490,-261.2219968,0.00011537,2]
[354126939,1740264632502,-24900.0,0.00011969,2]
[354126940,1740264632511,-420.0,0.00012042,2]
[354126941,1740264632520,-7547.30814613,0.00013068,7]
[354126942,1740264632529,-900.0,0.00013068,2]
[354126943,1740264632538,-549.0,0.00013233,2]